fUST/lending_fUST_20250727
["ID","MTS","AMOUNT","RATE_DAILY","PERIOD"]
[375235700,1753593076057,-429.9863832,0.00024822,2]
[375235701,1753593076066,-429.9863832,0.00024822,2]
[375235702,1753593076076,-293.85068442,0.00024826,2]
[375235703,1753593076085,-500.0,0.00024827,2]
[375235704,1753593076094,-1100.0,0.00024839,2]
[375235705,1753593076103,-151.960606,0.000249,7]
[375235706,1753593076113,-151.0,0.000249,7]
[375235707,1753593076122,-503.81332379,0.000249,9]
[375235708,1753593076132,-151.0,0.000249,7]
[375235709,1753593076141,-161.843609,0.000249,7]
[375235710,1753593076151,-500.0,0.000249,9]
[375235711,1753593076160,-151.0,0.000249,7]
[375235712,1753593076170,-151.0,0.000249,7]
[375235713,1753593076179,-151.0,0.000249,7]
[375235714,1753593076188,-151.0,0.000249,7]
[375235715,1753593076198,-151.0,0.000249,7]
[375235716,1753593076207,-301.456526,0.000249,7]
[375235717,1753593076217,-152.931538,0.000249,7]
[375235718,1753593076227,-345054.92335183,0.000249,2]
[375235719,1753593076551,-0.00787186,0.00019452,2]
[375235720,1753593076572,-464.25428869,0.00019452,2]
[375235721,1753593076582,-460.0,0.00019726,2]
[375235722,1753593076592,-460.0,0.0002,2]
[375235723,1753593076601,-460.0,0.00020273,2]
[375235724,1753593076611,-48.73018936,0.00020821,2]
[375235725,1753593076897,-472.92,0.00019178,2]
[375235726,1753593076908,-151.0,0.00020546,2]
[375235727,1753593076919,-460.0,0.00020547,2]
[375235728,1753593076930,-427.00298709,0.00020821,2]
[375235729,1753593076939,-460.0,0.00020821,2]
[375235730,1753593076949,-152.278939,0.00021095,2]
[375235731,1753593076959,-460.0,0.00021095,2]
[375235732,1753593076968,-460.0,0.00021369,2]
[375235733,1753593076977,-460.0,0.00021643,2]
[375235734,1753593076986,-460.0,0.00021917,2]
[375235735,1753593076995,-460.0,0.00022191,2]
[375235736,1753593077004,-151.0,0.00024384,2]
[375235737,1753593077014,-404.23927179,0.000249,2]
[375235738,1753593077025,-60959.46090455,0.000249,2]
[375235739,1753593077151,-460.0,0.00019178,2]
[375235740,1753593077161,-160.0,0.00022465,2]
[375235741,1753593077173,-300.0,0.00022465,2]
[375235742,1753593077183,-1246.44,0.00022465,2]
[375235743,1753593077192,-460.0,0.00022739,2]
[375235744,1753593077202,-460.0,0.00023013,2]
[375235745,1753593077211,-460.0,0.00023287,2]
[375235746,1753593077221,-559.15981407,0.000249,2]
[375235747,1753593088186,265.498347,0.00013699,2]
[375235750,1753593522572,911.282635,0.00017467,2]
[375235751,1753593681943,1351.95240862,0.00017465,2]
[375235752,1753593681968,23548.04759138,0.00017465,2]
[375235753,1753593903383,500.0,0.00017271,2]
[375235754,1753593909189,500.0,0.00017271,2]
[375235755,1753593916496,500.0,0.00017271,2]
[375235756,1753593921936,500.0,0.00017271,2]
[375235757,1753593922586,198.47647328,0.0001791,2]
[375235758,1753593926804,500.0,0.00017271,2]
[375235759,1753593931670,500.0,0.00017271,2]
[375235760,1753593936426,500.0,0.00017271,2]
[375235762,1753594048103,-500.0,0.00018121,2]
[375235763,1753594048127,-623.05714936,0.00018266,3]
[375235764,1753594048148,-68.71455746,0.00018366,2]
[375235767,1753594092393,415.13133153,0.00010618,2]
[375235771,1753594094261,11382.34204078,0.000125,2]
[375235772,1753594106112,277.83490182,0.00014114,2]
[375235773,1753594108129,282.6838505,0.0001,2]
[375235774,1753594113573,395.48381071,0.00017,2]
[375235775,1753594113596,8375.37946066,0.00017,2]
[375235777,1753594117809,580.73026726,0.000149,2]
[375235778,1753594118028,1000.0,0.0001,2]
[375235779,1753594122180,210.75538349,0.00016,2]
[375235780,1753594123569,7308.76427365,0.0001,2]
[375235781,1753594201399,166.0,0.00017455,2]
[375235804,1753594232070,-267.15869636,0.00018273,2]
[375235807,1753594232080,-31.09949616,0.00018358,2]
[375235817,1753594232129,-145.41466636,0.00018358,2]
[375235819,1753594232138,-318.52459815,0.00018373,2]
[375235820,1753594232147,-657.79790404,0.0001843,2]
[375235822,1753594232156,-716.04,0.00018458,3]
[375235823,1753594232169,-300.0,0.0001846,2]
[375235824,1753594232178,-1200.0,0.0001846,2]
[375235825,1753594232188,-290.23284495,0.00018461,2]
[375235826,1753594232197,-500.0,0.00018461,2]
[375235827,1753594232207,-500.0,0.00018461,2]
[375235828,1753594232216,-500.0,0.00018461,2]
[375235829,1753594232226,-248.62622982,0.00018461,2]
[375235830,1753594232235,-421.95237609,0.00018461,2]
[375235831,1753594232245,-597.87561508,0.00018461,2]
[375235832,1753594232256,-500.0,0.00018461,2]
[375235833,1753594232265,-500.0,0.00018461,2]
[375235834,1753594232274,-522.37031815,0.00018461,2]
[375235835,1753594232283,-500.0,0.00018461,2]
[375235836,1753594232292,-255.8212658,0.00018461,2]
[375235837,1753594232301,-500.0,0.00018461,2]
[375235838,1753594232309,-500.0,0.00018461,2]
[375235839,1753594232318,-526.06820041,0.00018461,2]
[375235840,1753594232328,-1200.0,0.00018462,2]
[375235841,1753594232337,-50000.0,0.00018462,2]
[375235842,1753594232347,-410.5618451,0.00018467,2]
[375235843,1753594232356,-500.0,0.00018467,2]
[375235844,1753594232365,-508.73862605,0.00018467,2]
[375235845,1753594232374,-500.0,0.00018467,2]
[375235846,1753594232383,-500.0,0.00018467,2]
[375235847,1753594232392,-500.0,0.00018467,2]
[375235848,1753594232401,-500.0,0.00018467,2]
[375235849,1753594232410,-500.0,0.00018467,2]
[375235850,1753594232419,-500.0,0.00018467,2]
[375235851,1753594232428,-500.0,0.00018467,2]
[375235852,1753594232437,-500.0,0.00018467,2]
[375235853,1753594232446,-257370.95772468,0.00018468,2]
[375235854,1753594232457,-1247.31331951,0.00018468,2]
[375235855,1753594232468,-1116.69829201,0.00018468,2]
[375235856,1753594232480,-47852.41571109,0.00018468,2]
[375235857,1753594233166,310.687413,0.00013699,2]
[375235882,1753594238035,-62412.61495271,0.00018468,2]
[375235884,1753594238046,-532.93088371,0.00018473,2]
[375235885,1753594238055,-500.0,0.00018473,2]
[375235887,1753594238065,-504.35785339,0.00018473,2]
[375235889,1753594238074,-500.0,0.00018473,2]
[375235890,1753594238083,-500.0,0.00018473,2]
[375235891,1753594238093,-500.0,0.00018473,2]
[375235892,1753594238103,-150.0,0.00018783,2]
[375235893,1753594238113,-375.56245508,0.000189,2]
[375235894,1753594238122,-2060.53706727,0.000189,2]
[375235895,1753594238132,-500.0,0.00019021,2]
[375235896,1753594238141,-1004.19352281,0.00019021,2]
[375235897,1753594238150,-500.0,0.00019075,2]
[375235898,1753594238160,-2682.74810701,0.00019083,2]
[375235899,1753594238172,-2060.53706725,0.00019141,2]
[375235901,1753594238181,-226.73870925,0.00019173,2]
[375235903,1753594238190,-500.0,0.00019173,2]
[375235904,1753594238200,-460.0,0.00019178,2]
[375235906,1753594238211,-460.0,0.00019178,2]
[375235908,1753594238220,-463.79774747,0.00019178,2]
[375235910,1753594238229,-460.0,0.00019178,2]
[375235911,1753594238238,-460.0,0.00019178,2]
[375235913,1753594238248,-152.14777717,0.00019178,2]
[375235915,1753594238257,-460.0,0.00019178,2]
[375235917,1753594238266,-460.0,0.00019178,2]
[375235918,1753594238275,-460.0,0.00019178,2]
[375235920,1753594238283,-460.0,0.00019178,2]
[375235922,1753594238292,-460.0,0.00019178,2]
[375235923,1753594238301,-460.0,0.00019178,2]
[375235925,1753594238310,-460.0,0.00019178,2]
[375235927,1753594238319,-460.0,0.00019178,2]
[375235929,1753594238328,-460.0,0.00019178,2]
[375235930,1753594238337,-458.47654903,0.00019178,2]
[375235932,1753594238346,-460.70187515,0.00019178,2]
[375235933,1753594238355,-460.0,0.00019178,2]
[375235935,1753594238364,-460.0,0.00019178,2]
[375235937,1753594238373,-460.0,0.00019178,2]
[375235939,1753594238382,-460.0,0.00019178,2]
[375235941,1753594238391,-460.0,0.00019178,2]
[375235942,1753594238400,-460.0,0.00019178,2]
[375235944,1753594238410,-460.0,0.00019178,2]
[375235945,1753594238419,-460.0,0.00019178,2]
[375235946,1753594238428,-460.0,0.00019178,2]
[375235947,1753594238437,-460.0,0.00019178,2]
[375235948,1753594238446,-460.0,0.00019178,2]
[375235949,1753594238455,-460.0,0.00019178,2]
[375235951,1753594238464,-460.0,0.00019178,2]
[375235953,1753594238473,-460.0,0.00019178,2]
[375235955,1753594238482,-460.0,0.00019178,2]
[375235957,1753594238491,-362.20741982,0.00019178,2]
[375235958,1753594238500,-434.07310333,0.00019178,2]
[375235959,1753594238508,-335.84176392,0.00019178,2]
[375235960,1753594238518,-460.0,0.00019178,2]
[375235961,1753594238527,-460.0,0.00019178,2]
[375235962,1753594238536,-460.0,0.00019178,2]
[375235963,1753594238546,-460.0,0.00019178,2]
[375235964,1753594238555,-460.0,0.00019178,2]
[375235965,1753594238564,-460.0,0.00019178,2]
[375235966,1753594238574,-460.0,0.00019178,2]
[375235967,1753594238583,-460.0,0.00019178,2]
[375235968,1753594238592,-460.0,0.00019178,2]
[375235969,1753594238602,-275.01924584,0.00019178,2]
[375235970,1753594238613,-2704.54,0.00019178,2]
[375235971,1753594238623,-496.71517265,0.00019178,2]
[375235972,1753594238632,-606.2860239,0.00019178,2]
[375235973,1753594238641,-477.25501411,0.00019178,2]
[375235974,1753594238650,-460.0,0.00019178,2]
[375235975,1753594238659,-538.86451372,0.00019178,2]
[375235976,1753594238668,-460.0,0.00019178,2]
[375235977,1753594238677,-460.0,0.00019178,2]
[375235978,1753594238686,-462.88915775,0.00019178,2]
[375235979,1753594238695,-990.02,0.00019178,2]
[375235980,1753594238704,-460.0,0.00019178,2]
[375235981,1753594238713,-460.0,0.00019178,2]
[375235982,1753594238722,-460.0,0.00019178,2]
[375235983,1753594238731,-460.0,0.00019178,2]
[375235984,1753594238740,-460.0,0.00019178,2]
[375235985,1753594238749,-460.0,0.00019178,2]
[375235986,1753594238758,-460.0,0.00019178,2]
[375235987,1753594238767,-460.0,0.00019178,2]
[375235988,1753594238776,-460.0,0.00019178,2]
[375235989,1753594238785,-460.0,0.00019178,2]
[375235990,1753594238794,-460.0,0.00019178,2]
[375235992,1753594238929,-460.0,0.00019178,2]
[375235994,1753594238947,-460.0,0.00019178,2]
[375235996,1753594238956,-460.0,0.00019178,2]
[375235997,1753594238965,-460.0,0.00019178,2]
[375235999,1753594238975,-460.0,0.00019178,2]
[375236000,1753594238985,-460.0,0.00019178,2]
[375236001,1753594238994,-460.0,0.00019178,2]
[375236003,1753594239004,-460.0,0.00019178,2]
[375236005,1753594239013,-412.92370538,0.00019178,2]
[375236007,1753594239024,-460.0,0.00019178,2]
[375236009,1753594239034,-460.0,0.00019178,2]
[375236012,1753594239046,-463.09992033,0.00019178,2]
[375236013,1753594239059,-460.0,0.00019178,2]
[375236015,1753594239071,-460.0,0.00019178,2]
[375236017,1753594239080,-460.0,0.00019178,2]
[375236020,1753594239091,-460.0,0.00019178,2]
[375236022,1753594239101,-936.81,0.00019178,2]
[375236024,1753594239111,-460.0,0.00019178,2]
[375236025,1753594239121,-460.0,0.00019178,2]
[375236027,1753594239130,-464.1670179,0.00019178,2]
[375236029,1753594239141,-332.18629561,0.00019178,2]
[375236031,1753594239153,-460.0,0.00019178,2]
[375236033,1753594239166,-460.0,0.00019178,2]
[375236036,1753594239179,-460.0,0.00019178,2]
[375236037,1753594239188,-460.0,0.00019178,2]
[375236039,1753594239198,-462.69948555,0.00019178,2]
[375236041,1753594239207,-460.0,0.00019178,2]
[375236043,1753594239216,-460.0,0.00019178,2]
[375236045,1753594239225,-460.0,0.00019178,2]
[375236047,1753594239235,-460.0,0.00019178,2]
[375236050,1753594239244,-460.0,0.00019178,2]
[375236051,1753594239254,-2794.88,0.00019178,2]
[375236053,1753594239266,-460.0,0.00019178,2]
[375236055,1753594239276,-460.0,0.00019178,2]
[375236057,1753594239286,-502.912933,0.00019178,2]
[375236059,1753594239295,-460.0,0.00019178,2]
[375236061,1753594239304,-460.0,0.00019178,2]
[375236063,1753594239314,-462.57533692,0.00019178,2]
[375236066,1753594239323,-460.0,0.00019178,2]
[375236068,1753594239333,-462.90151327,0.00019178,2]
[375236070,1753594239342,-460.0,0.00019178,2]
[375236072,1753594239351,-501.06,0.00019178,2]
[375236074,1753594239364,-460.0,0.00019178,2]
[375236076,1753594239373,-1483.75,0.00019178,2]
[375236078,1753594239383,-460.0,0.00019178,2]
[375236081,1753594239392,-460.0,0.00019178,2]
[375236083,1753594239401,-460.0,0.00019178,2]
[375236085,1753594239411,-460.0,0.00019178,2]
[375236087,1753594239420,-460.0,0.00019178,2]
[375236089,1753594239429,-462.09216176,0.00019178,2]
[375236091,1753594239439,-460.0,0.00019178,2]
[375236093,1753594239448,-460.0,0.00019178,2]
[375236095,1753594239457,-460.0,0.00019178,2]
[375236097,1753594239467,-460.0,0.00019178,2]
[375236100,1753594239476,-460.0,0.00019178,2]
[375236103,1753594239485,-460.0,0.00019178,2]
[375236106,1753594239494,-460.0,0.00019178,2]
[375236108,1753594239507,-460.0,0.00019178,2]
[375236110,1753594239516,-460.0,0.00019178,2]
[375236112,1753594239525,-467.73944377,0.00019178,2]
[375236114,1753594239534,-460.0,0.00019178,2]
[375236116,1753594239544,-460.0,0.00019178,2]
[375236118,1753594239553,-460.0,0.00019178,2]
[375236120,1753594239562,-460.0,0.00019178,2]
[375236122,1753594239572,-469.56894678,0.00019178,2]
[375236124,1753594239582,-460.0,0.00019178,2]
[375236126,1753594239591,-1071.68,0.00019178,2]
[375236128,1753594239600,-460.0,0.00019178,2]
[375236130,1753594239611,-330.98545394,0.00019178,2]
[375236132,1753594239620,-1052.83,0.00019178,2]
[375236134,1753594239629,-1095.3,0.00019178,2]
[375236136,1753594239640,-460.0,0.00019178,2]
[375236138,1753594239650,-462.2915928,0.00019178,2]
[375236140,1753594239660,-460.0,0.00019178,2]
[375236142,1753594239669,-460.0,0.00019178,2]
[375236144,1753594239679,-460.0,0.00019178,2]
[375236146,1753594239688,-1367.69,0.00019178,2]
[375236148,1753594239698,-460.0,0.00019178,2]
[375236150,1753594239707,-461.53195102,0.00019178,2]
[375236152,1753594239716,-442.6287461,0.00019178,2]
[375236154,1753594239726,-990.08,0.00019178,2]
[375236156,1753594239735,-460.0,0.00019178,2]
[375236158,1753594239744,-460.0,0.00019178,2]
[375236159,1753594239754,-460.0,0.00019178,2]
[375236161,1753594239764,-460.0,0.00019178,2]
[375236164,1753594239773,-460.0,0.00019178,2]
[375236165,1753594239783,-460.0,0.00019178,2]
[375236167,1753594239792,-460.0,0.00019178,2]
[375236169,1753594239801,-460.0,0.00019178,2]
[375236171,1753594239811,-460.0,0.00019178,2]
[375236173,1753594239821,-867.34,0.00019178,2]
[375236175,1753594239830,-460.0,0.00019178,2]
[375236177,1753594239840,-460.0,0.00019178,2]
[375236179,1753594239849,-460.0,0.00019178,2]
[375236181,1753594239860,-460.0,0.00019178,2]
[375236183,1753594239870,-460.0,0.00019178,2]
[375236185,1753594239879,-460.0,0.00019178,2]
[375236187,1753594239889,-460.0,0.00019178,2]
[375236189,1753594239899,-460.0,0.00019178,2]
[375236191,1753594239908,-460.0,0.00019178,2]
[375236193,1753594239918,-680.18,0.00019178,2]
[375236195,1753594239928,-460.0,0.00019178,2]
[375236197,1753594239938,-460.0,0.00019178,2]
[375236199,1753594239947,-460.0,0.00019178,2]
[375236201,1753594239957,-460.0,0.00019178,2]
[375236203,1753594239966,-460.0,0.00019178,2]
[375236205,1753594239976,-460.0,0.00019178,2]
[375236207,1753594239985,-460.0,0.00019178,2]
[375236209,1753594239994,-460.0,0.00019178,2]
[375236211,1753594240003,-460.0,0.00019178,2]
[375236213,1753594240013,-460.0,0.00019178,2]
[375236215,1753594240022,-460.0,0.00019178,2]
[375236217,1753594240031,-460.0,0.00019178,2]
[375236219,1753594240040,-460.0,0.00019178,2]
[375236221,1753594240050,-460.0,0.00019178,2]
[375236223,1753594240059,-460.0,0.00019178,2]
[375236225,1753594240069,-710.38,0.00019178,2]
[375236227,1753594240078,-460.0,0.00019178,2]
[375236229,1753594240088,-460.0,0.00019178,2]
[375236231,1753594240097,-460.0,0.00019178,2]
[375236232,1753594240106,-460.0,0.00019178,2]
[375236234,1753594240116,-909.34,0.00019178,2]
[375236236,1753594240125,-988.4,0.00019178,2]
[375236237,1753594240134,-460.0,0.00019178,2]
[375236239,1753594240144,-460.0,0.00019178,2]
[375236241,1753594240154,-460.0,0.00019178,2]
[375236243,1753594240166,-460.0,0.00019178,2]
[375236245,1753594240176,-460.0,0.00019178,2]
[375236247,1753594240186,-460.0,0.00019178,2]
[375236249,1753594240195,-460.0,0.00019178,2]
[375236251,1753594240204,-460.0,0.00019178,2]
[375236253,1753594240214,-460.0,0.00019178,2]
[375236255,1753594240223,-500.0,0.00019178,2]
[375236256,1753594240232,-460.0,0.00019178,2]
[375236258,1753594240242,-190.142514,0.00019178,2]
[375236260,1753594240252,-2060.53706725,0.00019383,2]
[375236262,1753594240261,-318.52459815,0.0001944,2]
[375236264,1753594240269,-460.0,0.00019452,2]
[375236266,1753594240279,-460.0,0.00019452,2]
[375236268,1753594240288,-460.0,0.00019452,2]
[375236270,1753594240297,-463.50678061,0.00019452,2]
[375236272,1753594240307,-460.0,0.00019452,2]
[375236274,1753594240316,-460.0,0.00019452,2]
[375236276,1753594240325,-181.28992782,0.00019452,2]
[375236278,1753594240335,-527.31591432,0.00019452,2]
[375236279,1753594240344,-460.0,0.00019452,2]
[375236281,1753594240353,-460.0,0.00019452,2]
[375236283,1753594240364,-460.0,0.00019452,2]
[375236285,1753594240374,-460.0,0.00019452,2]
[375236287,1753594240383,-460.0,0.00019452,2]
[375236289,1753594240392,-460.0,0.00019452,2]
[375236291,1753594240401,-460.0,0.00019452,2]
[375236293,1753594240410,-424.34900269,0.00019452,2]
[375236295,1753594240420,-463.22189135,0.00019452,2]
[375236297,1753594240429,-460.0,0.00019452,2]
[375236299,1753594240438,-460.0,0.00019452,2]
[375236301,1753594240447,-460.0,0.00019452,2]
[375236303,1753594240456,-463.28255592,0.00019452,2]
[375236304,1753594240465,-460.0,0.00019452,2]
[375236306,1753594240474,-460.0,0.00019452,2]
[375236308,1753594240483,-460.0,0.00019452,2]
[375236310,1753594240493,-2704.54,0.00019452,2]
[375236312,1753594240502,-460.0,0.00019452,2]
[375236314,1753594240511,-460.0,0.00019452,2]
[375236316,1753594240520,-580.31,0.00019452,2]
[375236318,1753594240530,-990.02,0.00019452,2]
[375236320,1753594240539,-460.0,0.00019452,2]
[375236322,1753594240549,-460.0,0.00019452,2]
[375236324,1753594240558,-460.0,0.00019452,2]
[375236326,1753594240567,-460.0,0.00019452,2]
[375236328,1753594240578,-460.0,0.00019452,2]
[375236330,1753594240586,-460.0,0.00019452,2]
[375236332,1753594240596,-460.0,0.00019452,2]
[375236334,1753594240607,-282.48096707,0.00019452,2]
[375236336,1753594240616,-460.0,0.00019452,2]
[375236338,1753594240625,-460.0,0.00019452,2]
[375236339,1753594240634,-460.0,0.00019452,2]
[375236341,1753594240643,-936.81,0.00019452,2]
[375236343,1753594240653,-460.0,0.00019452,2]
[375236345,1753594240662,-460.0,0.00019452,2]
[375236347,1753594240674,-460.0,0.00019452,2]
[375236349,1753594240684,-460.0,0.00019452,2]
[375236351,1753594240694,-2794.88,0.00019452,2]
[375236353,1753594240704,-367.76053293,0.00019452,2]
[375236355,1753594240713,-460.0,0.00019452,2]
[375236357,1753594240722,-501.06,0.00019452,2]
[375236359,1753594240732,-460.0,0.00019452,2]
[375236361,1753594240741,-1483.75,0.00019452,2]
[375236363,1753594240750,-460.0,0.00019452,2]
[375236365,1753594240759,-460.0,0.00019452,2]
[375236367,1753594240769,-460.0,0.00019452,2]
[375236369,1753594240778,-343.2622293,0.00019452,2]
[375236371,1753594240787,-460.0,0.00019452,2]
[375236373,1753594240797,-516.79534477,0.00019452,2]
[375236375,1753594240806,-460.0,0.00019452,2]
[375236377,1753594240815,-460.0,0.00019452,2]
[375236379,1753594240825,-460.0,0.00019452,2]
[375236380,1753594240834,-460.0,0.00019452,2]
[375236382,1753594240843,-460.0,0.00019452,2]
[375236384,1753594240853,-460.0,0.00019452,2]
[375236386,1753594240864,-1071.68,0.00019452,2]
[375236388,1753594240874,-1052.83,0.00019452,2]
[375236390,1753594240884,-1095.3,0.00019452,2]
[375236392,1753594240893,-460.0,0.00019452,2]
[375236394,1753594240902,-460.0,0.00019452,2]
[375236396,1753594240912,-460.0,0.00019452,2]
[375236398,1753594240921,-1367.69,0.00019452,2]
[375236399,1753594240931,-990.08,0.00019452,2]
[375236401,1753594240940,-568.52774111,0.00019452,2]
[375236403,1753594240950,-460.0,0.00019452,2]
[375236405,1753594240959,-460.0,0.00019452,2]
[375236407,1753594240968,-460.0,0.00019452,2]
[375236409,1753594240978,-460.0,0.00019452,2]
[375236411,1753594240987,-318.47,0.00019452,2]
[375236413,1753594240996,-460.0,0.00019452,2]
[375236415,1753594241005,-867.34,0.00019452,2]
[375236417,1753594241015,-460.0,0.00019452,2]
[375236419,1753594241024,-460.0,0.00019452,2]
[375236421,1753594241034,-460.0,0.00019452,2]
[375236422,1753594241043,-275.45016382,0.00019452,2]
[375236424,1753594241053,-460.0,0.00019452,2]
[375236426,1753594241063,-460.0,0.00019452,2]
[375236428,1753594241072,-460.0,0.00019452,2]
[375236430,1753594241082,-680.18,0.00019452,2]
[375236432,1753594241091,-460.0,0.00019452,2]
[375236434,1753594241101,-460.0,0.00019452,2]
[375236436,1753594241114,-460.0,0.00019452,2]
[375236438,1753594241124,-460.0,0.00019452,2]
[375236440,1753594241134,-460.0,0.00019452,2]
[375236442,1753594241143,-460.0,0.00019452,2]
[375236444,1753594241152,-460.0,0.00019452,2]
[375236446,1753594241161,-460.0,0.00019452,2]
[375236448,1753594241174,-460.0,0.00019452,2]
[375236449,1753594241184,-460.0,0.00019452,2]
[375236451,1753594241193,-460.0,0.00019452,2]
[375236453,1753594241202,-460.0,0.00019452,2]
[375236455,1753594241211,-460.0,0.00019452,2]
[375236457,1753594241221,-460.0,0.00019452,2]
[375236459,1753594241231,-710.38,0.00019452,2]
[375236461,1753594241240,-460.0,0.00019452,2]
[375236463,1753594241250,-460.0,0.00019452,2]
[375236465,1753594241259,-460.0,0.00019452,2]
[375236467,1753594241268,-186.13,0.00019452,2]
[375236468,1753594241278,-909.34,0.00019452,2]
[375236470,1753594241288,-988.4,0.00019452,2]
[375236472,1753594241297,-460.0,0.00019452,2]
[375236474,1753594241306,-460.0,0.00019452,2]
[375236476,1753594241315,-460.0,0.00019452,2]
[375236478,1753594241324,-460.0,0.00019452,2]
[375236480,1753594241333,-460.0,0.00019452,2]
[375236482,1753594241343,-460.0,0.00019452,2]
[375236483,1753594241352,-460.0,0.00019452,2]
[375236484,1753594241365,-460.0,0.00019452,2]
[375236485,1753594241375,-501.05464748,0.00019473,2]
[375236486,1753594241384,-502.47379318,0.00019473,2]
[375236487,1753594241393,-2060.53706725,0.00019624,2]
[375236488,1753594241403,-150.0,0.00019677,2]
[375236489,1753594241412,-460.0,0.00019726,2]
[375236490,1753594241421,-460.0,0.00019726,2]
[375236491,1753594241431,-540.17375352,0.00019726,2]
[375236492,1753594241440,-460.0,0.00019726,2]
[375236493,1753594241449,-460.0,0.00019726,2]
[375236494,1753594241459,-460.0,0.00019726,2]
[375236495,1753594241468,-460.0,0.00019726,2]
[375236496,1753594241478,-460.0,0.00019726,2]
[375236497,1753594241487,-460.0,0.00019726,2]
[375236498,1753594241497,-2704.54,0.00019726,2]
[375236499,1753594241506,-990.02,0.00019726,2]
[375236500,1753594241515,-244.04,0.00019726,2]
[375236501,1753594241524,-460.0,0.00019726,2]
[375236503,1753594241533,-460.0,0.00019726,2]
[375236505,1753594241543,-460.0,0.00019726,2]
[375236507,1753594241552,-460.0,0.00019726,2]
[375236509,1753594241562,-460.0,0.00019726,2]
[375236511,1753594241572,-460.0,0.00019726,2]
[375236513,1753594241581,-460.0,0.00019726,2]
[375236515,1753594241594,-460.0,0.00019726,2]
[375236517,1753594241604,-936.81,0.00019726,2]
[375236519,1753594241615,-460.0,0.00019726,2]
[375236521,1753594241625,-460.0,0.00019726,2]
[375236523,1753594241635,-460.0,0.00019726,2]
[375236525,1753594241644,-460.0,0.00019726,2]
[375236527,1753594241653,-2794.88,0.00019726,2]
[375236529,1753594241662,-460.0,0.00019726,2]
[375236531,1753594241672,-501.06,0.00019726,2]
[375236533,1753594241682,-460.0,0.00019726,2]
[375236535,1753594241691,-1483.75,0.00019726,2]
[375236537,1753594241701,-397.3929076,0.00019726,2]
[375236539,1753594241710,-460.0,0.00019726,2]
[375236541,1753594241720,-460.0,0.00019726,2]
[375236543,1753594241729,-460.0,0.00019726,2]
[375236545,1753594241739,-460.0,0.00019726,2]
[375236547,1753594241748,-460.0,0.00019726,2]
[375236549,1753594241757,-460.0,0.00019726,2]
[375236551,1753594241767,-460.0,0.00019726,2]
[375236553,1753594241776,-1071.68,0.00019726,2]
[375236555,1753594241785,-1052.83,0.00019726,2]
[375236557,1753594241795,-1095.3,0.00019726,2]
[375236559,1753594241803,-460.0,0.00019726,2]
[375236560,1753594241813,-460.0,0.00019726,2]
[375236563,1753594241822,-460.0,0.00019726,2]
[375236565,1753594241831,-1367.69,0.00019726,2]
[375236566,1753594241841,-990.08,0.00019726,2]